fUSD/lending_fUSD_20250216
["ID","MTS","AMOUNT","RATE_DAILY","PERIOD"]
[353311173,1739748646628,-500.0,0.00013081,2]
[353311174,1739748646638,-500.0,0.00013081,2]
[353311175,1739748646647,-500.0,0.00013081,2]
[353311176,1739748646656,-500.0,0.00013081,2]
[353311177,1739748646667,-500.0,0.00013081,2]
[353311178,1739748646676,-500.0,0.00013081,2]
[353311179,1739748646685,-500.0,0.00013081,2]
[353311181,1739748646695,-500.0,0.00013081,2]
[353311183,1739748646704,-500.0,0.00013081,2]
[353311185,1739748646713,-500.0,0.00013081,2]
[353311187,1739748646722,-500.0,0.00013081,2]
[353311189,1739748646731,-500.0,0.00013081,2]
[353311191,1739748646740,-500.0,0.00013081,2]
[353311193,1739748646749,-500.0,0.00013081,2]
[353311195,1739748646759,-500.0,0.00013081,2]
[353311197,1739748646767,-166.77,0.00013081,2]
[353311199,1739748646776,-500.0,0.00013081,2]
[353311200,1739748646785,-500.0,0.00013081,2]
[353311202,1739748646794,-500.0,0.00013081,2]
[353311204,1739748646804,-500.0,0.00013081,2]
[353311205,1739748646813,-500.0,0.00013081,2]
[353311206,1739748646822,-500.0,0.00013081,2]
[353311207,1739748646831,-500.0,0.00013081,2]
[353311208,1739748646841,-500.0,0.00013081,2]
[353311209,1739748646851,-500.0,0.00013081,2]
[353311210,1739748646860,-500.0,0.00013081,2]
[353311211,1739748646868,-500.0,0.00013081,2]
[353311212,1739748646877,-500.0,0.00013081,2]
[353311213,1739748646887,-500.0,0.00013081,2]
[353311214,1739748646896,-709.74,0.00013081,2]
[353311215,1739748646905,-500.0,0.00013081,2]
[353311216,1739748646914,-814.86,0.00013081,2]
[353311217,1739748646924,-500.0,0.00013081,2]
[353311218,1739748646933,-500.0,0.00013081,2]
[353311219,1739748646942,-20612.19262384,0.00013121,2]
[353311253,1739749831491,-150.0,8.822e-05,2]
[353311254,1739749831502,-150.0,8.829e-05,2]
[353311255,1739749831512,-300.0,8.835e-05,2]
[353311256,1739749831522,-86.38615094,8.836e-05,2]
[353311257,1739749831534,-94.66474906,8.836e-05,2]
[353311258,1739749831544,-499.8689,8.836e-05,2]
[353311259,1739749831554,-371.92635094,8.836e-05,2]
[353311260,1739749831567,-252.38054761,8.836e-05,2]
[353311261,1739749831697,-531.053597,8.836e-05,2]
[353311262,1739749831771,-3114.08751234,8.836e-05,2]
[353311263,1739749831784,-898.97771118,8.836e-05,2]
[353311264,1739749831795,-5146.44128093,8.836e-05,2]
[353311265,1739749831805,-87.26462073,8.836e-05,2]
[353311266,1739749831817,-328.01300429,8.836e-05,2]
[353311267,1739749831829,-361.3473139,8.836e-05,2]
[353311268,1739749831841,-1835.50856108,8.836e-05,2]
[353311269,1739749831852,-10066.22539884,8.836e-05,2]
[353311270,1739749831863,-522.66890116,8.836e-05,2]
[353311271,1739749831872,-477.72609884,8.836e-05,2]
[353311272,1739749831885,-718.78087629,8.836e-05,2]
[353311275,1739749831897,-4071.39262487,8.836e-05,2]
[353311277,1739749831906,-217.0905,8.836e-05,2]
[353311279,1739749831916,-616.0342625,8.836e-05,2]
[353311281,1739749831925,-1000.0,8.851e-05,2]
[353311283,1739749831934,-150.0,8.863e-05,2]
[353311285,1739749831943,-6507.376,8.973e-05,2]
[353311287,1739749831952,-200.0,9.704e-05,2]
[353311288,1739749831962,-150.0,9.704e-05,2]
[353311290,1739749831971,-550.0,0.0001,2]
[353311292,1739749831981,-460.63,0.00010137,2]
[353311294,1739749831990,-500.0,0.00010274,2]
[353311296,1739749832000,-542.44079571,0.0001031,2]
[353311298,1739749832009,-491.36,0.0001041,2]
[353311300,1739749832018,-290.09,0.000118,2]
[353311302,1739749832027,-775.76,0.00011841,2]
[353311304,1739749832036,-600.0,0.00012,2]
[353311306,1739749832046,-1000.0,0.00012033,2]
[353311308,1739749832055,-248.08,0.00012228,2]
[353311310,1739749832064,-18747.94782089,0.00012275,2]
[353311312,1739749832080,-5152.05217911,0.00012275,2]
[353311314,1739749832089,-1500.0,0.00012305,2]
[353311316,1739749832099,-1113.35,0.00012331,2]
[353311317,1739749832108,-167.34,0.00012383,2]
[353311318,1739749832117,-250.0,0.00012422,2]
[353311320,1739749832127,-168.1,0.00012532,2]
[353311322,1739749832136,-491.36,0.00012674,2]
[353311324,1739749832146,-2026.0,0.00012781,2]
[353311327,1739749832155,-1274.0,0.00012781,2]
[353311330,1739749832165,-566.0,0.00012781,2]
[353311332,1739749832174,-784.0,0.00012781,2]
[353311334,1739749832183,-1644.267,0.00012781,2]
[353311337,1739749832192,-562.779,0.00012781,2]
[353311340,1739749832202,-4029.0,0.00012781,2]
[353311343,1739749832210,-3828.104,0.00012781,2]
[353311345,1739749832220,-150.0,0.00012781,2]
[353311347,1739749832229,-193.07237455,0.00012904,2]
[353311350,1739749832238,-641.3275599,0.00012904,2]
[353311353,1739749832248,-1504.43,0.00012904,2]
[353311356,1739749832257,-199.61705703,0.00012999,2]
[353311359,1739749832267,-502.49464332,0.00012999,2]
[353311361,1739749832276,-500.0,0.00012999,2]
[353311363,1739749832286,-500.0,0.00012999,2]
[353311365,1739749832295,-10000.0,0.00013,2]
[353311368,1739749832306,-559.1289584,0.00013112,2]
[353311370,1739749832315,-2414.8458886,0.00013112,2]
[353311372,1739749832325,-870.4461825,0.00013112,2]
[353311374,1739749832335,-150.42186678,0.00013112,2]
[353311376,1739749832344,-162.8424,0.00013121,2]
[353311378,1739749832355,-500.0,0.00013164,2]
[353311380,1739749832364,-500.0,0.00013164,2]
[353311382,1739749832373,-500.0,0.00013164,2]
[353311384,1739749832382,-500.0,0.00013164,2]
[353311386,1739749832392,-500.0,0.00013164,2]
[353311387,1739749832401,-500.0,0.00013164,2]
[353311389,1739749832411,-500.0,0.00013164,2]
[353311391,1739749832421,-500.0,0.00013164,2]
[353311393,1739749832430,-500.0,0.00013164,2]
[353311395,1739749832440,-500.0,0.00013164,2]
[353311397,1739749832450,-786.0,0.00013164,2]
[353311398,1739749832459,-500.0,0.00013164,2]
[353311399,1739749832467,-500.0,0.00013164,2]
[353311400,1739749832477,-500.0,0.00013164,2]
[353311401,1739749832487,-500.0,0.00013164,2]
[353311402,1739749832495,-500.0,0.00013164,2]
[353311403,1739749832505,-500.0,0.00013164,2]
[353311404,1739749832514,-500.0,0.00013164,2]
[353311405,1739749832524,-500.0,0.00013164,2]
[353311406,1739749832534,-500.0,0.00013164,2]
[353311407,1739749832544,-500.0,0.00013164,2]
[353311408,1739749832553,-500.0,0.00013164,2]
[353311409,1739749832562,-500.0,0.00013164,2]
[353311410,1739749832571,-500.0,0.00013164,2]
[353311411,1739749832581,-500.0,0.00013164,2]
[353311412,1739749832590,-500.0,0.00013164,2]
[353311413,1739749832599,-500.0,0.00013164,2]
[353311414,1739749832613,-500.0,0.00013164,2]
[353311415,1739749832623,-500.0,0.00013164,2]
[353311416,1739749832632,-500.0,0.00013164,2]
[353311417,1739749832642,-500.0,0.00013164,2]
[353311418,1739749832651,-500.0,0.00013164,2]
[353311419,1739749832661,-500.0,0.00013164,2]
[353311420,1739749832670,-500.0,0.00013164,2]
[353311421,1739749832680,-500.0,0.00013164,2]
[353311422,1739749832689,-500.0,0.00013164,2]
[353311423,1739749832699,-500.0,0.00013164,2]
[353311424,1739749832708,-500.0,0.00013164,2]
[353311425,1739749832717,-500.0,0.00013164,2]
[353311426,1739749832727,-500.0,0.00013164,2]
[353311427,1739749832737,-500.0,0.00013164,2]
[353311428,1739749832746,-500.0,0.00013164,2]
[353311429,1739749832756,-500.0,0.00013164,2]
[353311430,1739749832765,-500.0,0.00013164,2]
[353311431,1739749832775,-500.0,0.00013164,2]
[353311432,1739749832784,-500.0,0.00013164,2]
[353311433,1739749832794,-500.0,0.00013164,2]
[353311434,1739749832803,-500.0,0.00013164,2]
[353311435,1739749832812,-500.0,0.00013164,2]
[353311436,1739749832821,-515.0,0.00013164,2]
[353311437,1739749832830,-150.0,0.00013488,2]
[353311438,1739749832840,-150.0,0.00013488,2]
[353311439,1739749832850,-150.0,0.00013488,2]
[353311440,1739749832859,-150.0,0.00013488,2]
[353311441,1739749832868,-200.0,0.000135,3]
[353311442,1739749832878,-1000.0,0.00013538,2]
[353311443,1739749832887,-702.34,0.00013698,2]
[353311444,1739749832897,-702.34,0.00013698,2]
[353311445,1739749832907,-702.34,0.00013698,2]
[353311446,1739749832916,-702.34,0.00013698,2]
[353311447,1739749832926,-702.34,0.00013698,2]
[353311448,1739749832935,-702.34,0.00013698,2]
[353311449,1739749832945,-702.34,0.00013698,2]
[353311450,1739749832954,-702.34,0.00013698,2]
[353311451,1739749832963,-702.34,0.00013698,2]
[353311452,1739749832972,-500.0,0.00013698,2]
[353311453,1739749832982,-508.74064028,0.00013698,2]
[353311454,1739749832991,-1000.0,0.00013698,3]
[353311455,1739749833001,-500.0,0.00013699,2]
[353311456,1739749833010,-500.0,0.00013699,2]
[353311457,1739749833020,-540.33,0.00013699,7]
[353311458,1739749833029,-540.33,0.00013699,7]
[353311459,1739749833038,-540.33,0.00013699,7]
[353311460,1739749833048,-540.33,0.00013699,7]
[353311461,1739749833059,-4000.0,0.00013699,2]
[353311462,1739749833068,-200.0,0.00013699,2]
[353311463,1739749833078,-500.0,0.00013699,2]
[353311464,1739749833088,-265.13,0.00013699,2]
[353311465,1739749833098,-702.34,0.00013739,2]
[353311466,1739749833108,-20972.04801461,0.00013741,2]
[353311467,1739749833118,-702.34,0.00013821,2]
[353311468,1739749833127,-648.9,0.00013841,2]
[353311469,1739749833137,-500.0,0.00013841,2]
[353311470,1739749833147,-446.38,0.00013841,2]
[353311471,1739749833157,-20972.04801452,0.00013869,2]
[353311472,1739749833167,-400.0,0.000139,5]
[353311473,1739749833177,-9966.84196793,0.000139,2]
[353311474,1739749833186,-702.34,0.00013903,2]
[353311475,1739749833195,-500.0,0.00013923,2]
[353311476,1739749833205,-500.0,0.00013944,2]
[353311477,1739749833214,-500.0,0.00013944,2]
[353311478,1739749833224,-500.0,0.00013944,2]
[353311479,1739749833233,-500.0,0.00013944,2]
[353311480,1739749833243,-500.0,0.00013944,2]
[353311481,1739749833252,-500.0,0.00013944,2]
[353311482,1739749833263,-500.0,0.00013944,2]
[353311483,1739749833272,-500.0,0.00013944,2]
[353311484,1739749833282,-500.0,0.00013944,2]
[353311485,1739749833291,-500.0,0.00013944,2]
[353311486,1739749833301,-500.0,0.00013944,2]
[353311487,1739749833310,-500.0,0.00013944,2]
[353311488,1739749833320,-500.0,0.00013944,2]
[353311489,1739749833329,-500.0,0.00013944,2]
[353311490,1739749833338,-500.0,0.00013944,2]
[353311491,1739749833348,-127.68141451,0.00013944,2]
[353311494,1739749837505,-282.79,8.973e-05,2]
[353311495,1739749837699,-968.0249,8.973e-05,2]
[353311496,1739749837708,-1110.0,0.00012781,2]
[353311497,1739749837718,-2130.63221888,0.00013112,2]
[353311498,1739749837729,-258.75685648,0.00013112,2]
[353311499,1739749837740,-1019.93882678,0.00013112,2]
[353311500,1739749837752,-1019.46417,0.00013112,2]
[353311501,1739749837765,-2844.71006776,0.00013112,2]
[353311502,1739749837775,-372.31858549,0.00013944,2]
[353311504,1739749837784,-500.0,0.00013944,2]
[353311506,1739749837793,-268.48,0.00013944,2]
[353311507,1739749837802,-500.0,0.00013944,2]
[353311508,1739749837811,-500.0,0.00013944,2]
[353311509,1739749837820,-500.0,0.00013944,2]
[353311510,1739749837830,-500.0,0.00013944,2]
[353311511,1739749837839,-500.0,0.00013944,2]
[353311512,1739749837848,-500.0,0.00013944,2]
[353311514,1739749837857,-500.0,0.00013944,2]
[353311515,1739749837867,-500.0,0.00013944,2]
[353311517,1739749837876,-160.511366,0.00013944,2]
[353311519,1739749837886,-500.0,0.00013944,2]
[353311521,1739749837895,-500.0,0.00013944,2]
[353311523,1739749837904,-416.29,0.00013944,2]
[353311525,1739749837913,-500.0,0.00013944,2]
[353311527,1739749837923,-650.6,0.00013944,2]
[353311529,1739749837932,-500.0,0.00013944,2]
[353311531,1739749837941,-427.0812913,0.00013944,2]
[353311533,1739749837951,-500.0,0.00013945,2]
[353311535,1739749837960,-1166.3,0.00013945,2]
[353311537,1739749837969,-500.0,0.00013945,2]
[353311539,1739749837978,-500.0,0.00013945,2]
[353311541,1739749837987,-500.0,0.00013945,2]
[353311543,1739749837996,-500.0,0.00013945,2]
[353311545,1739749838005,-157.796924,0.00013945,2]
[353311547,1739749838015,-430.32565235,0.00013945,2]
[353311549,1739749838026,-69.67434765,0.00013945,2]
[353311551,1739749838035,-500.0,0.00013945,2]
[353311553,1739749838044,-500.0,0.00013945,2]
[353311555,1739749838054,-500.0,0.00013945,2]
[353311557,1739749838063,-500.0,0.00013945,2]
[353311559,1739749838072,-500.0,0.00013945,2]
[353311561,1739749838080,-500.0,0.00013945,2]
[353311563,1739749838089,-500.0,0.00013945,2]
[353311564,1739749838098,-500.0,0.00013945,2]
[353311566,1739749838108,-500.0,0.00013945,2]
[353311568,1739749838117,-500.0,0.00013945,2]
[353311570,1739749838126,-500.0,0.00013945,2]
[353311572,1739749838136,-500.0,0.00013945,2]
[353311574,1739749838145,-500.0,0.00013945,2]
[353311576,1739749838154,-500.0,0.00013945,2]
[353311578,1739749838164,-500.0,0.00013945,2]
[353311580,1739749838173,-543.73,0.00013945,2]
[353311582,1739749838183,-404.55,0.00013945,2]
[353311584,1739749838192,-500.0,0.00013945,2]
[353311585,1739749838202,-500.0,0.00013945,2]
[353311586,1739749838211,-500.0,0.00013945,2]
[353311587,1739749838221,-1000.0,0.00013972,3]
[353311588,1739749838231,-540.33,0.00013973,7]
[353311589,1739749838240,-540.33,0.00013973,7]
[353311590,1739749838250,-702.34,0.00013986,2]
[353311591,1739749838260,-654.44,0.00013986,2]
[353311592,1739749838269,-150.0,0.00013987,2]
[353311593,1739749838279,-20972.04801452,0.00013996,2]
[353311594,1739749838288,-650.0,0.00014,2]
[353311595,1739749838298,-3328.0,0.00014,2]
[353311596,1739749838307,-268.44084453,0.00014,3]
[353311597,1739749838317,-500.0,0.00014006,2]
[353311598,1739749838326,-500.0,0.0001402,2]
[353311599,1739749838335,-500.0,0.00014026,2]
[353311600,1739749838345,-500.0,0.00014026,2]
[353311601,1739749838354,-500.0,0.00014026,2]
[353311602,1739749838364,-500.0,0.00014026,2]
[353311603,1739749838373,-500.0,0.00014026,2]
[353311604,1739749838383,-500.0,0.00014026,2]
[353311605,1739749838394,-500.0,0.00014026,2]
[353311606,1739749838403,-500.0,0.00014026,2]
[353311607,1739749838413,-500.0,0.00014026,2]
[353311608,1739749838422,-500.0,0.00014026,2]
[353311609,1739749838432,-500.0,0.00014026,2]
[353311610,1739749838441,-500.0,0.00014026,2]
[353311611,1739749838451,-500.0,0.00014026,2]
[353311612,1739749838460,-500.0,0.00014026,2]
[353311613,1739749838470,-500.0,0.00014026,2]
[353311614,1739749838480,-363.1,0.00014026,2]
[353311615,1739749838489,-500.0,0.00014026,2]
[353311616,1739749838498,-500.0,0.00014026,2]
[353311617,1739749838508,-234.02920994,0.00014026,2]
[353311618,1739749838517,-500.0,0.00014026,2]
[353311619,1739749838526,-500.0,0.00014026,2]
[353311620,1739749838535,-500.0,0.00014026,2]
[353311621,1739749838545,-500.0,0.00014026,2]
[353311622,1739749838555,-407.52,0.00014026,2]
[353311623,1739749838564,-500.0,0.00014026,2]
[353311624,1739749838574,-500.0,0.00014026,2]
[353311625,1739749838583,-500.0,0.00014026,2]
[353311626,1739749838592,-500.0,0.00014026,2]
[353311627,1739749838602,-650.6,0.00014026,2]
[353311628,1739749838615,-500.0,0.00014026,2]
[353311629,1739749838626,-500.0,0.00014027,2]
[353311630,1739749838636,-1166.3,0.00014027,2]
[353311631,1739749838645,-500.0,0.00014027,2]
[353311632,1739749838656,-369.89,0.00014027,2]
[353311633,1739749838666,-500.0,0.00014027,2]
[353311634,1739749838676,-500.0,0.00014027,2]
[353311635,1739749838685,-500.0,0.00014027,2]
[353311636,1739749838699,-500.0,0.00014027,2]
[353311637,1739749838708,-500.0,0.00014027,2]
[353311638,1739749838718,-500.0,0.00014027,2]
[353311639,1739749838728,-500.0,0.00014027,2]
[353311640,1739749838737,-500.0,0.00014027,2]
[353311641,1739749838747,-500.0,0.00014027,2]
[353311642,1739749838757,-500.0,0.00014027,2]
[353311643,1739749838766,-500.0,0.00014027,2]
[353311644,1739749838776,-422.06,0.00014027,2]
[353311645,1739749838785,-500.0,0.00014027,2]
[353311646,1739749838795,-500.0,0.00014027,2]
[353311647,1739749838804,-500.0,0.00014027,2]
[353311648,1739749838813,-500.0,0.00014027,2]
[353311649,1739749838823,-500.0,0.00014027,2]
[353311650,1739749838832,-500.0,0.00014027,2]
[353311651,1739749838841,-500.0,0.00014027,2]
[353311652,1739749838857,-500.0,0.00014027,2]
[353311653,1739749838871,-152.0,0.00014045,3]
[353311654,1739749838880,-248.79120345,0.00014063,2]
[353311655,1739749838889,-500.0,0.00014063,2]
[353311656,1739749838899,-500.0,0.00014063,2]
[353311657,1739749838909,-500.0,0.00014063,2]
[353311658,1739749838919,-500.0,0.00014063,2]
[353311659,1739749838929,-500.0,0.00014063,2]
[353311660,1739749838939,-702.34,0.00014068,2]
[353311661,1739749838949,-500.0,0.00014088,2]
[353311662,1739749838958,-150.17852296,0.00014091,2]
[353311663,1739749838968,-506.8,0.00014109,2]
[353311664,1739749838977,-500.0,0.00014109,2]
[353311665,1739749838987,-176.1270018,0.00014109,2]
[353311666,1739749838996,-500.0,0.00014109,2]
[353311667,1739749839007,-500.0,0.00014109,2]
[353311668,1739749839016,-500.0,0.00014109,2]
[353311669,1739749839027,-500.0,0.00014109,2]
[353311670,1739749839036,-500.0,0.00014109,2]
[353311671,1739749839048,-500.0,0.00014109,2]
[353311672,1739749839057,-500.0,0.00014109,2]
[353311673,1739749839077,-500.0,0.00014109,2]
[353311674,1739749839088,-500.0,0.00014109,2]
[353311675,1739749839097,-500.0,0.00014109,2]
[353311676,1739749839107,-310.82414508,0.00014109,2]
[353311677,1739749839116,-500.0,0.00014109,2]
[353311678,1739749839125,-500.0,0.00014109,2]
[353311679,1739749839135,-500.0,0.00014109,2]
[353311680,1739749839145,-500.0,0.00014109,2]
[353311681,1739749839154,-500.0,0.00014109,2]
[353311682,1739749839163,-500.0,0.00014109,2]
[353311683,1739749839172,-500.0,0.00014109,2]
[353311684,1739749839182,-160.511366,0.00014109,2]
[353311685,1739749839192,-500.0,0.00014109,2]
[353311686,1739749839202,-500.0,0.00014109,2]
[353311687,1739749839212,-500.0,0.00014109,2]
[353311688,1739749839222,-650.6,0.00014109,2]
[353311689,1739749839231,-500.0,0.00014109,2]
[353311690,1739749839241,-373.1,0.0001411,2]
[353311691,1739749839251,-1166.3,0.0001411,2]
[353311692,1739749839261,-500.0,0.0001411,2]
[353311693,1739749839271,-500.0,0.0001411,2]
[353311695,1739749839281,-500.0,0.0001411,2]
[353311696,1739749839291,-157.796924,0.0001411,2]
[353311697,1739749839301,-500.0,0.0001411,2]
[353311698,1739749839311,-500.0,0.0001411,2]
[353311699,1739749839321,-500.0,0.0001411,2]
[353311700,1739749839331,-500.0,0.0001411,2]
[353311701,1739749839340,-500.0,0.0001411,2]
[353311702,1739749839350,-500.0,0.0001411,2]
[353311703,1739749839360,-205.82,0.0001411,2]
[353311704,1739749839370,-500.0,0.0001411,2]
[353311705,1739749839379,-500.0,0.0001411,2]
[353311706,1739749839389,-500.0,0.0001411,2]
[353311708,1739749839399,-500.0,0.0001411,2]
[353311710,1739749839620,-590.77,0.0001411,2]
[353311711,1739749839632,-500.0,0.0001411,2]
[353311712,1739749839642,-500.0,0.0001411,2]
[353311713,1739749839651,-500.0,0.0001411,2]
[353311714,1739749839662,-500.0,0.0001411,2]
[353311715,1739749839671,-500.0,0.0001411,2]
[353311716,1739749839681,-1129.97503619,0.00014124,2]
[353311717,1739749839805,-380.1515482,0.00013944,2]
[353311718,1739749839829,-119.8484518,0.00013944,2]
[353311719,1739749839839,-500.0,0.00014063,2]
[353311720,1739749839848,-1958.68515768,0.00014124,2]
[353311721,1739749839859,-800.43139998,0.00014124,2]
[353311722,1739749839871,-962.23,0.00014124,2]
[353311723,1739749839882,-277.54769983,0.00014124,2]
[353311745,1739749843219,-500.0,0.00013944,2]
[353311746,1739749843229,-183.38030062,0.00014124,2]
[353311747,1739749843241,-1104.19793837,0.00014124,2]
[353311748,1739749843252,-299.82346822,0.00014124,2]
[353311749,1739749843303,-500.0,0.00013944,2]
[353311750,1739749843314,-447.1920184,0.00014124,2]
[353311751,1739749843402,-261.98000005,0.00014124,2]
[353311752,1739749843603,-712.0569245,0.00014124,2]
[353311761,1739749845508,-500.0,0.00013944,2]
[353311762,1739749845518,-477.72648762,0.00013944,2]
[353311763,1739749845528,-2971.57351238,0.00014124,2]
[353311764,1739749845540,-769.686283,0.00014124,2]
[353311765,1739749845551,-335.30570427,0.00014124,2]
[353311766,1739749845564,-973.6826005,0.00014124,2]
[353311767,1739749845576,-7784.29997053,0.00014124,2]
[353311768,1739749845585,-702.34,0.0001415,2]
[353311769,1739749845594,-500.0,0.0001417,2]
[353311770,1739749845604,-315.9,0.00014191,2]
[353311771,1739749845616,-327.93484948,0.00014191,2]
[353311772,1739749845630,-172.06515052,0.00014191,2]
[353311773,1739749845640,-371.19682468,0.00014191,2]
[353311774,1739749845651,-128.80317532,0.00014191,2]
[353311775,1739749845662,-500.0,0.00014191,2]
[353311776,1739749845671,-51.50747621,0.00014191,2]
[353311777,1739749845693,-318.24307084,0.00014191,2]
[353311778,1739749845705,-130.24945295,0.00014191,2]
[353311779,1739749845714,-165.73433243,0.00014191,2]
[353311780,1739749845726,-334.26566757,0.00014191,2]
[353311781,1739749845735,-500.0,0.00014191,2]
[353311782,1739749845745,-241.91,0.00014191,2]
[353311783,1739749845755,-500.0,0.00014191,2]
[353311784,1739749845765,-500.0,0.00014191,2]
[353311785,1739749845774,-500.0,0.00014191,2]
[353311786,1739749845784,-500.0,0.00014191,2]
[353311788,1739749845794,-500.0,0.00014191,2]
[353311789,1739749845803,-500.0,0.00014191,2]
[353311790,1739749845813,-500.0,0.00014191,2]
[353311791,1739749845822,-500.0,0.00014191,2]
[353311792,1739749845831,-493.13,0.00014191,2]
[353311793,1739749845840,-160.511366,0.00014191,2]
[353311794,1739749845850,-500.0,0.00014191,2]
[353311795,1739749845859,-500.0,0.00014191,2]
[353311796,1739749845870,-500.0,0.00014191,2]
[353311797,1739749845879,-650.6,0.00014191,2]
[353311798,1739749845889,-500.0,0.00014191,2]
[353311799,1739749845898,-1166.3,0.00014192,2]
[353311800,1739749845908,-500.0,0.00014192,2]
[353311801,1739749845918,-500.0,0.00014192,2]
[353311802,1739749845927,-157.796924,0.00014192,2]
[353311803,1739749845937,-500.0,0.00014192,2]
[353311804,1739749845948,-419.53,0.00014192,2]
[353311805,1739749845957,-500.0,0.00014192,2]
[353311806,1739749845967,-500.0,0.00014192,2]
[353311807,1739749845976,-500.0,0.00014192,2]
[353311808,1739749845986,-500.0,0.00014192,2]
[353311809,1739749845995,-500.0,0.00014192,2]
[353311810,1739749846004,-500.0,0.00014192,2]
[353311811,1739749846014,-500.0,0.00014192,2]
[353311812,1739749846024,-500.0,0.00014192,2]
[353311813,1739749846033,-547.99576764,0.00014192,2]
[353311814,1739749846042,-500.0,0.00014192,2]
[353311815,1739749846051,-425.96,0.00014192,2]
[353311816,1739749846060,-500.0,0.00014192,2]
[353311817,1739749846070,-500.0,0.00014192,2]
[353311818,1739749846079,-702.34,0.00014232,2]
[353311819,1739749846088,-150.0,0.00014237,2]
[353311820,1739749846098,-1000.0,0.00014246,3]
[353311821,1739749846108,-540.33,0.00014247,7]
[353311822,1739749846117,-540.33,0.00014247,7]
[353311823,1739749846128,-20972.04801452,0.00014252,2]
[353311824,1739749846137,-531.92,0.00014252,2]
[353311825,1739749846148,-500.0,0.00014273,2]
[353311826,1739749846158,-500.0,0.00014273,2]
[353311827,1739749846167,-500.0,0.00014273,2]
[353311828,1739749846177,-500.0,0.00014273,2]
[353311829,1739749846188,-500.0,0.00014273,2]
[353311830,1739749846198,-358.22,0.00014273,2]
[353311831,1739749846207,-500.0,0.00014273,2]
[353311832,1739749846216,-500.0,0.00014273,2]
[353311833,1739749846225,-500.0,0.00014273,2]
[353311834,1739749846235,-500.0,0.00014273,2]
[353311835,1739749846245,-500.0,0.00014273,2]
[353311836,1739749846254,-500.0,0.00014273,2]
[353311837,1739749846263,-500.0,0.00014273,2]
[353311838,1739749846274,-500.0,0.00014273,2]
[353311839,1739749846285,-500.0,0.00014273,2]
[353311840,1739749846294,-500.0,0.00014273,2]
[353311841,1739749846304,-500.0,0.00014273,2]
[353311842,1739749846314,-650.6,0.00014273,2]
[353311843,1739749846323,-500.0,0.00014273,2]
[353311844,1739749846333,-1166.3,0.00014274,2]
[353311845,1739749846343,-500.0,0.00014274,2]
[353311846,1739749846353,-500.0,0.00014274,2]
[353311847,1739749846363,-500.0,0.00014274,2]
[353311848,1739749846373,-500.0,0.00014274,2]
[353311849,1739749846382,-217.2,0.00014274,2]
[353311850,1739749846392,-500.0,0.00014274,2]
[353311851,1739749846401,-588.61065724,0.00014274,2]
[353311852,1739749846411,-500.0,0.00014274,2]
[353311853,1739749846420,-500.0,0.00014274,2]
[353311854,1739749846433,-500.0,0.00014274,2]
[353311855,1739749846442,-500.0,0.00014274,2]